bitfinex-derivatives/quotes_BTCF0:USTF0_20250422
["timestamp","ask_amount","ask_price","bid_price","bid_amount"]
[1745310366524,0.1728404,88471.0,88470.0,0.1454217]
[1745310366725,0.1998404,88471.0,88470.0,0.1454217]
[1745310368315,0.1998404,88471.0,88470.0,0.5062217]
[1745310368514,0.1998404,88471.0,88470.0,0.1454217]
[1745310369128,0.1998404,88471.0,88470.0,0.1776217]
[1745310370025,0.1998404,88471.0,88470.0,0.5384217]
[1745310370417,0.1998404,88471.0,88470.0,0.1776217]
[1745310370622,0.1998404,88471.0,88470.0,0.5384217]
[1745310372417,0.1998404,88471.0,88470.0,0.1776217]
[1745310373224,0.1728404,88471.0,88470.0,0.1776217]
[1745310373424,0.1998404,88471.0,88470.0,0.1776217]
[1745310374430,0.1728404,88471.0,88470.0,0.1776217]
[1745310374621,0.1998404,88471.0,88470.0,0.1776217]
[1745310375719,0.1998404,88471.0,88470.0,0.03238]
[1745310375920,0.1130493,88465.0,88464.0,0.1130493]
[1745310376431,0.1441493,88465.0,88464.0,0.1130493]
[1745310377834,0.1711493,88465.0,88464.0,0.1130493]
[1745310378332,0.1130493,88464.0,88463.0,0.032]
[1745310378528,0.1130493,88464.0,88463.0,0.1450506]
[1745310378732,0.1455493,88464.0,88463.0,0.1450506]
[1745310379128,0.1455493,88464.0,88463.0,0.1751506]
[1745310379325,0.1455493,88464.0,88463.0,0.5359506]
[1745310379633,0.1455493,88464.0,88463.0,0.4229]
[1745310379820,0.1725493,88464.0,88463.0,0.4229]
[1745310380834,0.1995493,88464.0,88463.0,0.4229]
[1745310381626,0.1995493,88464.0,88463.0,0.3909]
[1745310383426,0.1995493,88464.0,88463.0,0.0301]
[1745310383625,0.1995493,88464.0,88463.0,0.3909]
[1745310385437,0.2095493,88464.0,88463.0,0.3909]
[1745310386639,0.2095493,88464.0,88463.0,0.0301]
[1745310386842,0.1995493,88464.0,88463.0,0.0301]
[1745310387030,0.1130506,88463.0,88462.0,0.00016948]
[1745310387339,0.1547506,88463.0,88462.0,0.00016948]
[1745310387535,0.1547506,88463.0,88462.0,0.00024948]
[1745310387536,0.3006946,88463.0,88462.0,0.00024948]
[1745310387929,0.3006946,88463.0,88462.0,0.00016948]
[1745310388129,0.3006946,88463.0,88462.0,0.00024948]
[1745310388641,0.3276946,88463.0,88462.0,0.00024948]
[1745310390534,0.3546946,88463.0,88462.0,0.00024948]
[1745310390739,0.3276946,88463.0,88462.0,0.00024948]
[1745310390940,0.3546946,88463.0,88462.0,0.00024948]
[1745310391136,0.2416506,88463.0,88462.0,0.00024948]
[1745310391544,0.2146506,88463.0,88462.0,0.00024948]
[1745310391728,0.2416506,88463.0,88462.0,0.00024948]
[1745310392139,0.24995551,88463.0,88462.0,0.00024948]
[1745310392341,0.22295551,88463.0,88462.0,0.00024948]
[1745310392532,0.24995551,88463.0,88462.0,0.00024948]
[1745310393343,0.21825551,88463.0,88462.0,0.00024948]
[1745310393539,0.19125551,88463.0,88462.0,0.00024948]
[1745310393747,0.21825551,88463.0,88462.0,0.00024948]
[1745310403245,0.15244,88463.0,88462.0,0.47410138]
[1745310403552,0.14244,88463.0,88462.0,0.47410138]
[1745310403749,0.14244,88463.0,88462.0,0.57030138]
[1745310403945,0.2554906,88463.0,88462.0,0.57030138]
[1745310404448,0.2554906,88463.0,88462.0,0.42474948]
[1745310404637,0.2882906,88463.0,88462.0,0.42474948]
[1745310404842,0.2882906,88463.0,88462.0,0.53772138]
[1745310405043,0.2882906,88463.0,88462.0,0.53780138]
[1745310405341,0.2882906,88463.0,88462.0,0.42466948]
[1745310405543,0.2882906,88463.0,88462.0,0.42474948]
[1745310406051,0.2882906,88463.0,88462.0,0.06394948]
[1745310408653,0.3982906,88463.0,88462.0,0.06394948]
[1745310412351,0.3982906,88463.0,88462.0,0.03334948]
[1745310412655,0.4312906,88463.0,88462.0,0.03334948]
[1745310412853,0.4312906,88463.0,88462.0,0.03326948]
[1745310413046,0.4312906,88463.0,88462.0,0.03334948]
[1745310418457,0.3654906,88463.0,88462.0,0.14640138]
[1745310418646,0.054,88463.0,88462.0,0.50720138]
[1745310419051,0.054,88463.0,88462.0,0.53910138]
[1745310423661,0.1670506,88463.0,88462.0,0.53910138]
[1745310423961,0.1670506,88463.0,88462.0,0.53902138]
[1745310424262,0.1670506,88463.0,88462.0,0.53910138]
[1745310426656,0.054,88463.0,88462.0,0.53910138]
[1745310426876,0.1670506,88463.0,88462.0,0.53910138]
[1745310428157,0.054,88463.0,88462.0,0.53910138]
[1745310428758,0.1670506,88463.0,88462.0,0.53910138]
[1745310428946,0.0869,88463.0,88462.0,0.53910138]
[1745310433352,0.0869,88463.0,88462.0,0.53902138]
[1745310433552,0.0869,88463.0,88462.0,0.53910138]
[1745310433752,0.1999506,88463.0,88462.0,0.53910138]
[1745310437058,0.1999506,88463.0,88462.0,0.17830138]
[1745310437261,0.1999506,88463.0,88462.0,0.53910138]
[1745310443564,0.0869,88463.0,88462.0,0.53910138]
[1745310443950,0.054,88463.0,88462.0,0.53910138]
[1745310445763,0.027,88463.0,88462.0,0.53910138]
[1745310445961,0.054,88463.0,88462.0,0.53910138]
[1745310448051,0.054,88463.0,88462.0,0.89990142]
[1745310448359,0.054,88463.0,88462.0,0.90090142]
[1745310449549,0.1670506,88463.0,88462.0,0.90090142]
[1745310449754,0.1982506,88463.0,88462.0,0.90090142]
[1745310449950,0.054,88463.0,88462.0,0.90090142]
[1745310455567,0.054,88463.0,88462.0,0.17930142]
[1745310455759,0.054,88463.0,88462.0,0.90090142]
[1745310460472,0.054,88463.0,88462.0,0.89990142]
[1745310461069,0.027,88463.0,88462.0,0.89990142]
[1745310461270,0.054,88463.0,88462.0,0.89990142]
[1745310461668,0.027,88463.0,88462.0,0.89990142]
[1745310462067,0.054,88463.0,88462.0,0.89990142]
[1745310462261,0.027,88463.0,88462.0,0.89990142]
[1745310462466,0.054,88463.0,88462.0,0.89990142]
[1745310464272,0.027,88463.0,88462.0,0.89990142]
[1745310464473,0.054,88463.0,88462.0,0.89990142]
[1745310465270,0.081,88463.0,88462.0,0.89990142]
[1745310465574,0.054,88463.0,88462.0,0.89990142]
[1745310466271,0.054,88463.0,88462.0,0.17830142]
[1745310466472,0.054,88463.0,88462.0,0.53910142]
[1745310466670,0.0312,88464.0,88463.0,0.0590506]
[1745310466974,0.0312,88464.0,88463.0,0.1211506]
[1745310467874,0.0312,88464.0,88463.0,0.4819506]
[1745310468065,0.0582,88464.0,88463.0,0.4819506]
[1745310468669,0.0732,88464.0,88463.0,0.1231506]
[1745310468865,0.0732,88464.0,88463.0,0.4839506]
[1745310470172,0.0462,88464.0,88463.0,0.4859506]
[1745310470370,0.0312,88464.0,88463.0,0.4859506]
[1745310470879,0.0312,88464.0,88463.0,0.4839506]
[1745310471176,0.0312,88464.0,88463.0,0.4859506]
[1745310472066,0.0462,88464.0,88463.0,0.4859506]
[1745310473267,0.0612,88464.0,88463.0,0.4859506]
[1745310474381,0.0612,88464.0,88463.0,0.004]
[1745310474382,0.1742493,88464.0,88463.0,0.004]
[1745310474571,0.1130506,88463.0,88462.0,0.00024948]
[1745310474771,0.1130532,88461.0,88460.0,0.000108]
[1745310474981,0.1130583,88457.0,88456.0,0.3608]
[1745310475285,0.1230583,88457.0,88456.0,0.3608]
[1745310475480,0.1130621,88454.0,88453.0,0.000108]
[1745310475681,0.1230621,88454.0,88453.0,0.000108]
[1745310475884,0.1130659,88451.0,88450.0,0.00508759]
[1745310476183,0.2013859,88451.0,88450.0,0.00508759]
[1745310476384,0.2652859,88451.0,88450.0,0.00508759]
[1745310476685,0.2652859,88451.0,88450.0,0.11815479]
[1745310476979,0.2652859,88451.0,88450.0,0.00508759]
[1745310477686,0.2812859,88451.0,88450.0,0.00708759]
[1745310477982,0.3120859,88451.0,88450.0,0.00708759]
[1745310478278,0.3390859,88451.0,88450.0,0.00708759]
[1745310478474,0.3390859,88451.0,88450.0,0.12015479]
[1745310479673,0.2507659,88451.0,88450.0,0.12015479]
[1745310479885,0.22602,88451.0,88450.0,0.12015479]
[1745310480482,0.3390859,88451.0,88450.0,0.12015479]
[1745310480684,0.22602,88451.0,88450.0,0.12015479]
[1745310480884,0.22602,88451.0,88450.0,0.15055479]
[1745310481579,0.3390859,88451.0,88450.0,0.12015479]
[1745310481778,0.22602,88451.0,88450.0,0.12015479]
[1745310481979,0.22602,88451.0,88450.0,0.15055479]
[1745310482676,0.19482,88451.0,88450.0,0.15055479]
[1745310482876,0.3078859,88451.0,88450.0,0.15055479]
[1745310483983,0.19482,88451.0,88450.0,0.15055479]
[1745310484487,0.3078859,88451.0,88450.0,0.15055479]
[1745310486086,0.19482,88451.0,88450.0,0.15055479]
[1745310486289,0.16402,88451.0,88450.0,0.15055479]
[1745310486584,0.16402,88451.0,88450.0,0.18145479]
[1745310487486,0.2770859,88451.0,88450.0,0.18145479]
[1745310491487,0.13132,88451.0,88450.0,0.18145479]
[1745310492090,0.13132,88451.0,88450.0,0.18145483]
[1745310494292,0.13132,88451.0,88450.0,0.90305483]
[1745310495292,0.13132,88451.0,88450.0,0.18145483]
[1745310495494,0.13132,88451.0,88450.0,0.90305483]
[1745310498396,0.13132,88451.0,88450.0,0.18145483]
[1745310498798,0.13132,88451.0,88450.0,0.90305483]
[1745310500597,0.2443859,88451.0,88450.0,0.36788763]
[1745310500806,0.2443859,88451.0,88450.0,0.48095483]
[1745310501206,0.2443859,88451.0,88450.0,0.48103483]
[1745310501397,0.3091859,88451.0,88450.0,0.48103483]
[1745310503903,0.3091859,88451.0,88450.0,0.48103479]
[1745310505405,0.3091859,88451.0,88450.0,0.12023479]
[1745310505606,0.3091859,88451.0,88450.0,0.48103479]
[1745310507503,0.3091859,88451.0,88450.0,0.51203479]
[1745310510106,0.3091859,88451.0,88450.0,0.15123479]
[1745310510306,0.3091859,88451.0,88450.0,0.51203479]
[1745310513005,0.16352,88451.0,88450.0,0.51203479]
[1745310513211,0.16352,88451.0,88450.0,0.54473479]
[1745310513412,0.2765859,88451.0,88450.0,0.54473479]
[1745310514808,0.2443859,88451.0,88450.0,0.54473479]
[1745310520013,0.2771859,88451.0,88450.0,0.54473479]
[1745310521411,0.0758,88451.0,88450.0,0.54473479]
[1745310521617,0.1888659,88451.0,88450.0,0.54473479]
[1745310524518,0.0758,88451.0,88450.0,0.54473479]
[1745310525614,0.1888659,88451.0,88450.0,0.54473479]
[1745310531107,0.0565234,88466.0,88458.0,0.113057]
[1745310531316,0.1130535,88461.0,88458.0,0.86585704]
[1745310531513,0.0565262,88462.0,88458.0,0.56585704]
[1745310531714,0.0301,88461.0,88458.0,0.56585704]
[1745310531911,0.1130545,88460.0,88458.0,0.56585704]
[1745310532106,0.0301,88461.0,88458.0,0.56593704]
[1745310532311,0.03026957,88459.0,88458.0,0.56593704]
[1745310534024,0.08426957,88459.0,88458.0,0.56693704]
[1745310534413,0.05726957,88459.0,88458.0,0.56593704]
[1745310534619,0.05726957,88459.0,88458.0,0.56693704]
[1745310534816,0.08426957,88459.0,88458.0,0.56693704]
[1745310535017,0.05726957,88459.0,88458.0,0.56593704]
[1745310535319,0.06226957,88459.0,88458.0,0.56793704]
[1745310536727,0.17532527,88459.0,88458.0,0.53773704]
[1745310537018,0.06226957,88459.0,88458.0,0.50633704]
[1745310537211,0.08426957,88459.0,88458.0,0.50533704]
[1745310537416,0.11676957,88459.0,88458.0,0.50525704]
[1745310537616,0.11676957,88459.0,88458.0,0.50533704]
[1745310537819,0.11576957,88459.0,88458.0,0.50533704]
[1745310538415,0.22882527,88459.0,88458.0,0.50533704]
[1745310539723,0.05316957,88459.0,88458.0,0.81763704]
[1745310540025,0.05316957,88459.0,88458.0,0.84893704]
[1745310540026,0.05416957,88459.0,88458.0,0.84893704]
[1745310540518,0.02716957,88459.0,88458.0,0.84893704]
[1745310540912,0.05416957,88459.0,88458.0,0.84893704]
[1745310541117,0.05416957,88459.0,88458.0,0.53663704]
[1745310541319,0.16722527,88459.0,88458.0,0.53663704]
[1745310541513,0.16722527,88459.0,88458.0,0.50433704]
[1745310541721,0.20312527,88459.0,88458.0,0.50433704]
[1745310541913,0.23012527,88459.0,88458.0,0.50425704]
[1745310542124,0.23012527,88459.0,88458.0,0.50433704]
[1745310542326,0.23012527,88459.0,88458.0,0.50425704]
[1745310542622,0.23012527,88459.0,88458.0,0.53513704]
[1745310543228,0.20312527,88459.0,88458.0,0.53513704]
[1745310543428,0.23012527,88459.0,88458.0,0.53513704]
[1745310544515,0.20312527,88459.0,88458.0,0.53513704]
[1745310544714,0.23012527,88459.0,88458.0,0.53513704]
[1745310545220,0.23012527,88459.0,88458.0,0.17433704]
[1745310545423,0.20312527,88459.0,88458.0,0.89593704]
[1745310545623,0.23012527,88459.0,88458.0,0.89593704]
[1745310545819,0.19932527,88459.0,88458.0,0.89593704]
[1745310546623,0.08626957,88459.0,88458.0,0.89593704]
[1745310546819,0.19932527,88459.0,88458.0,0.89593704]
[1745310547715,0.17232527,88459.0,88458.0,0.89593704]
[1745310547914,0.19932527,88459.0,88458.0,0.89593704]
[1745310548527,0.19932527,88459.0,88458.0,0.53513704]
[1745310549124,0.17232527,88459.0,88458.0,0.53513704]
[1745310549323,0.19932527,88459.0,88458.0,0.53513704]
[1745310550126,0.17232527,88459.0,88458.0,0.53513704]
[1745310550429,0.19932527,88459.0,88458.0,0.53513704]
[1745310551426,0.19932527,88459.0,88458.0,0.17433704]
[1745310551623,0.19932527,88459.0,88458.0,0.53513704]
[1745310553730,0.19932527,88459.0,88458.0,0.17433704]
[1745310553933,0.19932527,88459.0,88458.0,0.53513704]
[1745310554824,0.19932527,88459.0,88458.0,0.39128004]
[1745310555129,0.20282527,88459.0,88458.0,0.47393704]
[1745310555328,0.22982527,88459.0,88458.0,0.47385704]
[1745310555529,0.22982527,88459.0,88458.0,0.47393704]
[1745310555730,0.22982527,88459.0,88458.0,0.50663704]
[1745310557631,0.17232527,88459.0,88458.0,0.50663704]
[1745310557824,0.19932527,88459.0,88458.0,0.53703704]
[1745310558425,0.17232527,88459.0,88458.0,0.53703704]
[1745310558624,0.19932527,88459.0,88458.0,0.53703704]
[1745310559625,0.19932527,88459.0,88458.0,0.537037]
[1745310560321,0.08626957,88459.0,88458.0,0.537037]
[1745310561433,0.05926957,88459.0,88458.0,0.537037]
[1745310561640,0.08626957,88459.0,88458.0,0.537037]
[1745310561835,0.19932527,88459.0,88458.0,0.537037]
[1745310562724,0.17232527,88459.0,88458.0,0.537037]
[1745310562932,0.19932527,88459.0,88458.0,0.537037]
[1745310569035,0.19932527,88459.0,88458.0,0.506637]
[1745310569233,0.22952527,88459.0,88458.0,0.506637]
[1745310569445,0.22952527,88459.0,88458.0,0.506557]
[1745310569644,0.20252527,88459.0,88458.0,0.506637]
[1745310569956,0.22952527,88459.0,88458.0,0.506637]
[1745310570349,0.22952527,88459.0,88458.0,0.145837]
[1745310571849,0.20252527,88459.0,88458.0,0.145837]
[1745310572049,0.22952527,88459.0,88458.0,0.145837]
[1745310574945,0.19932527,88459.0,88458.0,0.178137]
[1745310575756,0.17232527,88459.0,88458.0,0.178137]
[1745310576054,0.19932527,88459.0,88458.0,0.178137]
[1745310576455,0.08626957,88459.0,88458.0,0.178137]
[1745310576645,0.17232527,88459.0,88458.0,0.178137]
[1745310576850,0.19932527,88459.0,88458.0,0.178137]
[1745310578550,0.19932527,88459.0,88458.0,0.538937]
[1745310583152,0.17232527,88459.0,88458.0,0.538937]
[1745310583358,0.19932527,88459.0,88458.0,0.538937]
[1745310583762,0.17232527,88459.0,88458.0,0.538937]
[1745310583952,0.19932527,88459.0,88458.0,0.538937]
[1745310586963,0.17232527,88459.0,88458.0,0.538937]
[1745310587150,0.19932527,88459.0,88458.0,0.538937]
[1745310589059,0.17232527,88459.0,88458.0,0.538937]
[1745310589362,0.19932527,88459.0,88458.0,0.538937]
[1745310590265,0.17232527,88459.0,88458.0,0.538937]
[1745310590462,0.19932527,88459.0,88458.0,0.538937]
[1745310597371,0.19932527,88459.0,88458.0,0.178137]
[1745310597666,0.19932527,88459.0,88458.0,0.538937]
[1745310602466,0.19932527,88459.0,88458.0,0.571437]
[1745310603069,0.19932527,88459.0,88458.0,0.538937]
[1745310603264,0.19932527,88459.0,88458.0,0.571437]
[1745310604673,0.19932527,88459.0,88458.0,0.538937]
[1745310605371,0.19932527,88459.0,88458.0,0.178137]
[1745310605671,0.19932527,88459.0,88458.0,0.538937]
[1745310605873,0.05416957,88459.0,88458.0,0.538937]
[1745310606864,0.02716957,88459.0,88458.0,0.538937]
[1745310607068,0.05416957,88459.0,88458.0,0.538937]
[1745310607471,0.02716957,88459.0,88458.0,0.538937]
[1745310607676,0.05416957,88459.0,88458.0,0.538937]
[1745310608272,0.08686957,88459.0,88458.0,0.538937]
[1745310608467,0.17292527,88459.0,88458.0,0.538937]
[1745310609175,0.19992527,88459.0,88458.0,0.538937]
[1745310609564,0.17292527,88459.0,88458.0,0.538937]
[1745310609770,0.19992527,88459.0,88458.0,0.538937]
[1745310610273,0.17292527,88459.0,88458.0,0.538937]
[1745310610474,0.19992527,88459.0,88458.0,0.538937]
[1745310611473,0.17292527,88459.0,88458.0,0.538937]
[1745310611679,0.19992527,88459.0,88458.0,0.538937]
[1745310612376,0.17292527,88459.0,88458.0,0.538937]
[1745310612569,0.19992527,88459.0,88458.0,0.538937]
[1745310613876,0.05986957,88459.0,88458.0,0.538937]
[1745310614071,0.08686957,88459.0,88458.0,0.538937]
[1745310615670,0.08686957,88459.0,88458.0,0.178137]
[1745310615875,0.08686957,88459.0,88458.0,0.538937]
[1745310616674,0.08686957,88459.0,88458.0,0.178137]
[1745310616880,0.08686957,88459.0,88458.0,0.538937]
[1745310618078,0.05986957,88459.0,88458.0,0.538937]
[1745310618379,0.08686957,88459.0,88458.0,0.538937]
[1745310619078,0.05986957,88459.0,88458.0,0.538937]
[1745310619280,0.08686957,88459.0,88458.0,0.538937]
[1745310624182,0.05986957,88459.0,88458.0,0.538937]
[1745310624382,0.08686957,88459.0,88458.0,0.538937]
[1745310629782,0.08686957,88459.0,88458.0,0.178137]
[1745310629984,0.08686957,88459.0,88458.0,0.538937]
[1745310630781,0.08686957,88459.0,88458.0,0.36088]
[1745310630782,0.19992527,88459.0,88458.0,0.36088]
[1745310631085,0.19992527,88459.0,88458.0,0.473857]
[1745310632192,0.19992527,88459.0,88458.0,0.473937]
[1745310633688,0.08686957,88459.0,88458.0,0.473937]
[1745310633889,0.19992527,88459.0,88458.0,0.473937]
[1745310636891,0.17292527,88459.0,88458.0,0.473937]
[1745310637188,0.19992527,88459.0,88458.0,0.473937]
[1745310638283,0.17292527,88459.0,88458.0,0.473937]
[1745310638478,0.08686957,88459.0,88458.0,0.473937]
[1745310638678,0.19992527,88459.0,88458.0,0.473937]
[1745310639190,0.19992527,88459.0,88458.0,0.506937]
[1745310649786,0.08686957,88459.0,88458.0,0.506937]
[1745310649988,0.19992527,88459.0,88458.0,0.506937]
[1745310655684,0.19992527,88459.0,88458.0,0.146137]
[1745310655885,0.19992527,88459.0,88458.0,0.506937]
[1745310660198,0.19992527,88459.0,88458.0,0.538037]
[1745310661688,0.19992527,88459.0,88458.0,0.177237]
[1745310661905,0.19992527,88459.0,88458.0,0.538037]
[1745310663599,0.08686957,88459.0,88458.0,0.538037]
[1745310665700,0.19992527,88459.0,88458.0,0.538037]
[1745310667409,0.17292527,88459.0,88458.0,0.538037]
[1745310667596,0.19992527,88459.0,88458.0,0.538037]
[1745310669903,0.08686957,88459.0,88458.0,0.538037]
[1745310670098,0.19992527,88459.0,88458.0,0.538037]
[1745310670296,0.08686957,88459.0,88458.0,0.538037]
[1745310670793,0.19992527,88459.0,88458.0,0.538037]
[1745310672793,0.08686957,88459.0,88458.0,0.538037]
[1745310674713,0.19992527,88459.0,88458.0,0.538037]
[1745310676606,0.08686957,88459.0,88458.0,0.538037]
[1745310676795,0.19992527,88459.0,88458.0,0.538037]
[1745310677201,0.19992527,88459.0,88458.0,0.55380276]
[1745310678196,0.19992527,88459.0,88458.0,0.538037]
[1745310678803,0.08686957,88459.0,88458.0,0.538037]
[1745310679510,0.19992527,88459.0,88458.0,0.538037]
[1745310681503,0.08686957,88459.0,88458.0,0.538037]
[1745310681903,0.19992527,88459.0,88458.0,0.538037]
[1745310686110,0.08686957,88459.0,88458.0,0.538037]
[1745310687308,0.19992527,88459.0,88458.0,0.538037]
[1745310689512,0.08686957,88459.0,88458.0,0.538037]
[1745310691406,0.19992527,88459.0,88458.0,0.538037]
[1745310693205,0.08686957,88459.0,88458.0,0.538037]
[1745310693417,0.19992527,88459.0,88458.0,0.538037]
[1745310694915,0.08686957,88459.0,88458.0,0.538037]
[1745310695117,0.08686957,88459.0,88458.0,0.570937]
[1745310695908,0.19992527,88459.0,88458.0,0.538037]
[1745310696419,0.08686957,88459.0,88458.0,0.538037]
[1745310697218,0.19992527,88459.0,88458.0,0.538037]
[1745310698119,0.08686957,88459.0,88458.0,0.538037]
[1745310709530,0.19992527,88459.0,88458.0,0.538037]
[1745310712038,0.08686957,88459.0,88458.0,0.538037]
[1745310712640,0.08686957,88459.0,88458.0,0.571037]
[1745310715438,0.08686957,88459.0,88458.0,0.538037]
[1745310723753,0.08686957,88459.0,88458.0,0.570837]
[1745310723955,0.0565055,88494.0,88490.0,0.1130148]
[1745310724155,0.06842602,88510.0,88498.0,0.0565025]
[1745310724156,0.1695168,88499.0,88498.0,0.0565025]
[1745310724551,0.28251281,88499.0,88498.0,0.0565025]
[1745310724752,0.1780631,88499.0,88498.0,0.0565025]
[1745310724952,0.2567801,88504.0,88503.0,0.0859995]
[1745310725156,0.1695001,88504.0,88503.0,0.0859995]
[1745310725361,0.27749824,88504.0,88503.0,0.0589995]
[1745310725764,0.27749824,88504.0,88501.0,0.0868004]
[1745310726063,0.27749824,88504.0,88503.0,0.1129995]
[1745310726254,0.16449744,88504.0,88503.0,0.1129995]
[1745310726653,0.19149744,88504.0,88503.0,0.1129995]
[1745310726855,0.21849744,88504.0,88503.0,0.1129995]
[1745310732772,0.18609744,88504.0,88503.0,0.1129995]
[1745310733277,0.18609744,88504.0,88503.0,0.1441995]
[1745310734071,0.21699744,88504.0,88503.0,0.1441995]
[1745310735276,0.21699744,88504.0,88503.0,0.1129995]
[1745310736874,0.0565004,88503.0,88490.0,0.00016957]
[1745310737174,0.1130072,88497.0,88496.0,0.4738074]
[1745310737374,0.1130072,88497.0,88496.0,0.4738874]
[1745310738072,0.1766072,88497.0,88496.0,0.4778874]
[1745310738571,0.1766072,88497.0,88496.0,0.49287666]
[1745310739162,0.1766072,88497.0,88496.0,0.52447666]
[1745310740774,0.1766072,88497.0,88496.0,0.5094874]
[1745310747078,0.1437072,88497.0,88496.0,0.5094874]
[1745310747267,0.1437072,88497.0,88496.0,0.5426874]
[1745310754081,0.1437072,88497.0,88496.0,0.55771573]
[1745310754578,0.1437072,88497.0,88496.0,0.5426874]
[1745310755175,0.1439072,88497.0,88496.0,0.5426874]
[1745310757269,0.1439072,88497.0,88496.0,0.5094874]
[1745310757469,0.1439072,88497.0,88496.0,0.5094074]
[1745310758178,0.1439072,88497.0,88496.0,0.5094874]
[1745310759287,0.1744072,88497.0,88496.0,0.5094874]
[1745310759675,0.1744072,88497.0,88496.0,0.1486874]
[1745310760683,0.1130148,88491.0,88490.0,1e-08]
[1745310760889,0.0565136,88482.0,88472.0,0.00169547]
[1745310761074,0.1130378,88473.0,88472.0,0.00169547]
[1745310761385,0.1430378,88473.0,88472.0,0.00169547]
[1745310761575,0.1430378,88473.0,88472.0,0.00177547]
[1745310762383,0.1430378,88473.0,88472.0,0.00377547]
[1745310762686,0.1430378,88473.0,88472.0,0.00577547]
[1745310764500,0.1650378,88473.0,88472.0,0.00477547]
[1745310765376,0.1430378,88473.0,88472.0,0.00377547]
[1745310765572,0.1920378,88473.0,88472.0,0.00277547]
[1745310766385,0.1650378,88473.0,88472.0,0.00277547]
[1745310766593,0.1920378,88473.0,88472.0,0.00277547]
[1745310768291,0.1970378,88473.0,88472.0,0.00177547]
[1745310769782,0.2007378,88473.0,88472.0,0.00177547]
[1745310769984,0.2277378,88473.0,88472.0,0.00177547]
[1745310771088,0.447728,88473.0,88450.0,0.00523339]
[1745310771388,0.447728,88473.0,88451.0,0.0307]
[1745310771389,0.1130647,88452.0,88451.0,0.0307]
[1745310771584,0.2199447,88452.0,88451.0,0.0307]
[1745310771888,0.2199447,88452.0,88451.0,0.1437659]
[1745310772185,0.1999447,88452.0,88451.0,0.1748659]
[1745310772393,0.2328447,88452.0,88451.0,0.1748659]
[1745310772687,0.2528447,88452.0,88451.0,0.1768659]
[1745310772986,0.2328447,88452.0,88451.0,0.1748659]
[1745310773173,0.2528447,88452.0,88451.0,0.1768659]
[1745310773586,0.28823847,88452.0,88451.0,0.0327]
[1745310773891,0.2798447,88452.0,88451.0,0.0327]
[1745310774182,0.2798447,88452.0,88451.0,0.06388]
[1745310774783,0.2868447,88452.0,88451.0,0.03078]
[1745310775388,0.3201447,88452.0,88451.0,0.03078]
[1745310776188,0.3201447,88452.0,88451.0,8e-05]
[1745310776492,0.1130659,88451.0,88450.0,0.00508759]
[1745310776892,0.1781659,88451.0,88450.0,0.00508759]
[1745310777992,0.2151659,88451.0,88450.0,0.00508759]
[1745310778499,0.2421659,88451.0,88450.0,0.00508759]
[1745310779083,0.6029659,88451.0,88450.0,0.00508759]
[1745310779690,0.6029659,88451.0,88450.0,0.00516759]
[1745310781087,0.6029659,88451.0,88450.0,0.11823479]
[1745310781088,0.2088659,88451.0,88450.0,0.11823479]
[1745310781589,0.1988659,88451.0,88450.0,0.00516759]
[1745310781990,0.1988659,88451.0,88450.0,0.03536759]
[1745310782178,0.1988659,88451.0,88450.0,0.06826759]
[1745310782378,0.1988659,88451.0,88450.0,0.18133479]
[1745310782790,0.1988659,88451.0,88450.0,0.06826759]
[1745310784185,0.1988659,88451.0,88450.0,0.18133479]
[1745310784593,0.1988659,88451.0,88450.0,0.06826759]
[1745310786481,0.1988659,88451.0,88450.0,0.18133479]
[1745310786895,0.1988659,88451.0,88450.0,0.06826759]
[1745310787397,0.1988659,88451.0,88450.0,0.03806759]
[1745310787598,0.2288659,88451.0,88450.0,0.03806759]
[1745310788783,0.1988659,88451.0,88450.0,0.03806759]
[1745310789597,0.1988659,88451.0,88450.0,0.15113479]
[1745310789799,0.2857459,88451.0,88450.0,0.15113479]
[1745310790296,0.2539459,88451.0,88450.0,0.18203479]
[1745310791387,0.2569459,88451.0,88450.0,0.18203479]
[1745310791792,0.2839459,88451.0,88450.0,0.18203479]
[1745310792290,0.2839459,88451.0,88450.0,0.06896759]
[1745310792496,0.2839459,88451.0,88450.0,0.06888759]
[1745310792693,0.2839459,88451.0,88450.0,0.06896759]
[1745310792894,0.2839459,88451.0,88450.0,0.06888759]
[1745310793090,0.2839459,88451.0,88450.0,0.06896759]
[1745310793298,0.2839459,88451.0,88450.0,0.03806759]
[1745310793694,0.2939459,88451.0,88450.0,0.03806759]
[1745310794001,0.3246459,88451.0,88450.0,0.03798759]
[1745310794197,0.3246459,88451.0,88450.0,0.03806759]
[1745310798607,0.2939459,88451.0,88450.0,0.03806759]
[1745310801100,0.2939459,88451.0,88440.0,0.0889396]
[1745310801101,0.11308,88440.0,88434.0,0.0001458]
[1745310801304,0.48388,88440.0,88435.0,0.0319]
[1745310801506,0.1130851,88436.0,88435.0,0.0319]
[1745310801689,0.1998051,88436.0,88435.0,0.0319]
[1745310802199,0.1998051,88436.0,88435.0,0.03198]
[1745310802593,0.2368051,88436.0,88435.0,8e-05]
[1745310802997,0.113089,88433.0,88428.0,0.1449946]
[1745310803199,0.113089,88433.0,88428.0,0.0319]
[1745310803794,0.1130941,88429.0,88428.0,0.0319]
[1745310803996,0.1230941,88429.0,88428.0,0.0319]
[1745310804195,0.1230941,88429.0,88428.0,0.03198]
[1745310804388,0.1230941,88429.0,88428.0,0.0319]
[1745310804594,0.1230941,88429.0,88428.0,0.03198]
[1745310804799,0.1500941,88429.0,88428.0,0.03198]
[1745310805312,0.1770941,88429.0,88428.0,0.03198]
[1745310809202,0.1770941,88429.0,88428.0,8e-05]
[1745310809518,0.1130992,88425.0,88424.0,0.00508909]
[1745310809702,0.1230992,88425.0,88424.0,0.00508909]
[1745310810103,0.1230992,88425.0,88424.0,0.03768909]
[1745310811102,0.1500992,88425.0,88424.0,0.03768909]
[1745310811305,0.1770992,88425.0,88424.0,0.00508909]
[1745310812005,0.2071992,88425.0,88424.0,0.00508909]
[1745310812195,0.2071992,88425.0,88424.0,0.00516909]
[1745310812402,0.3202912,88425.0,88424.0,9e-08]
[1745310812796,0.113112,88415.0,88414.0,0.0006]
[1745310813095,0.570672,88415.0,88414.0,0.0006]
[1745310813692,0.630772,88415.0,88414.0,0.0006]
[1745310814099,0.657772,88415.0,88414.0,0.0006]
[1745310814898,0.684772,88415.0,88414.0,0.0006]
[1745310818712,0.654772,88415.0,88414.0,0.0006]
[1745310819110,0.293972,88415.0,88414.0,0.0006]
[1745310819306,0.177112,88415.0,88414.0,0.0006]
[1745310819611,0.3608,88435.0,88414.0,0.0006]
[1745310819612,0.08676,88420.0,88419.0,0.1131069]
[1745310820000,0.08676,88420.0,88419.0,0.3631069]